bitfinex-derivatives/quotes_ETHF0:USTF0_20250115
["timestamp","ask_amount","ask_price","bid_price","bid_amount"]
[1736972744253,0.57699,3465.0,3464.9,44.5848]
[1736972744553,0.57699,3465.1,3465.0,0.57699]
[1736972745853,0.57699,3465.0,3464.9,44.5848]
[1736972746055,0.57699,3465.1,3465.0,0.57699]
[1736972746255,0.57697,3465.2,3465.1,0.57696]
[1736972746456,0.57696,3465.3,3465.2,0.57695]
[1736972746954,0.57698,3465.1,3465.0,0.57698]
[1736972747554,0.57699,3465.0,3464.9,44.58481]
[1736972747954,0.57699,3465.1,3465.0,0.57698]
[1736972748757,2.27401105,3465.4,3464.9,44.0078]
[1736972748957,0.57699,3465.1,3465.0,0.57699]
[1736972750362,0.57698,3465.2,3465.1,0.57696]
[1736972750566,0.57691,3465.6,3465.5,0.57689]
[1736972751275,0.8924,3466.1,3465.4,1.44233]
[1736972751563,0.8947,3466.6,3466.5,0.57675]
[1736972751761,1.47143,3466.6,3466.5,3.2078]
[1736972751962,1.47143,3466.6,3466.4,0.57675]
[1736972751963,0.8947,3466.6,3466.4,0.57675]
[1736972752162,0.8947,3466.6,3466.2,0.9223]
[1736972752361,2.27401105,3466.4,3466.0,3.2078]
[1736972752559,2.85082105,3466.1,3466.0,44.0078]
[1736972753159,2.85082105,3466.1,3466.0,3.2078]
[1736972753463,2.27401105,3466.1,3465.5,3.2078]
[1736972753662,0.57687,3465.8,3465.7,0.57688]
[1736972753967,0.57688,3465.7,3465.6,0.57689]
[1736972754267,2.27401105,3466.1,3465.5,3.2078]
[1736972754268,0.57687,3465.8,3465.5,3.2078]
[1736972754657,2.27401105,3466.1,3465.5,3.2078]
[1736972754857,0.5769,3465.6,3465.5,3.2078]
[1736972755158,2.27401105,3465.8,3465.7,0.57688]
[1736972755357,2.27401105,3465.8,3465.5,3.2078]
[1736972755560,2.85088105,3465.8,3465.7,0.57688]
[1736972755765,2.27401105,3466.1,3465.5,3.2078]
[1736972755970,5.48181105,3466.4,3466.2,0.57679]
[1736972756271,2.85079105,3466.4,3466.1,3.2078]
[1736972756475,0.57678,3466.3,3466.2,0.57679]
[1736972756972,1.47144,3466.6,3466.1,3.2078]
[1736972757177,0.8947,3466.6,3466.3,0.57676]
[1736972757479,0.8947,3466.6,3466.1,3.2078]
[1736972757777,0.57675,3466.5,3466.4,0.57676]
[1736972758179,0.57675,3466.5,3466.2,0.57679]
[1736972758478,0.5768,3466.2,3466.1,0.57681]
[1736972758682,0.8947,3466.6,3465.8,0.924]
[1736972758887,0.8947,3466.6,3466.2,3.2078]
[1736972759075,0.57676,3466.4,3466.3,0.57677]
[1736972759276,0.57675,3466.5,3466.4,0.57676]
[1736972759478,0.57678,3466.4,3466.2,3.78459]
[1736972759676,0.57678,3466.4,3466.3,0.57678]
[1736972760078,2.27401105,3466.5,3466.2,3.2078]
[1736972760285,0.57678,3466.3,3466.2,3.2078]
[1736972760679,0.57677,3466.4,3466.3,0.57677]
[1736972760874,2.27401105,3466.5,3466.4,0.57676]
[1736972761377,2.85076105,3466.5,3466.4,0.57676]
[1736972761879,2.27401105,3466.5,3466.0,0.57682]
[1736972762280,0.57685,3465.9,3465.8,3.2078]
[1736972762676,2.27401105,3465.9,3465.3,3.78474]
[1736972762882,0.57688,3465.7,3465.4,0.57692]
[1736972763085,0.57691,3465.5,3465.4,0.57692]
[1736972763283,0.57693,3465.4,3465.3,3.78474]
[1736972763585,0.866,3465.8,3465.2,1.42145]
[1736972763586,0.57695,3465.3,3465.2,1.42145]
[1736972763792,0.57688,3465.7,3465.3,0.57693]
[1736972763990,0.57693,3465.4,3465.3,0.57694]
[1736972764192,2.85094105,3465.5,3465.3,0.57695]
[1736972764492,0.57693,3465.4,3465.3,0.57695]
[1736972765678,2.27401105,3465.5,3465.2,0.8445]
[1736972765884,0.57694,3465.4,3465.3,0.57694]
[1736972766287,2.27401105,3465.5,3464.9,44.0078]
[1736972766489,0.57694,3465.4,3465.3,0.57693]
[1736972767091,0.57696,3465.3,3465.2,0.57695]
[1736972767291,0.57696,3465.3,3465.2,0.92375357]
[1736972767791,2.27401105,3465.5,3464.9,3.2078]
[1736972767986,0.577,3465.0,3464.9,3.2078]
[1736972768387,0.57708,3464.5,3464.4,3.2078]
[1736972768585,2.85109105,3464.5,3464.4,3.2078]
[1736972770291,2.27401105,3464.5,3463.9,3.2078]
[1736972770595,4.65038,3464.8,3463.9,3.2078]
[1736972770596,2.85117105,3464.0,3463.9,3.2078]
[1736972771496,0.57723,3463.6,3463.5,0.8649]
[1736972771696,0.57727,3463.4,3463.1,4.6654]
[1736972771900,0.57726,3463.5,3463.2,0.34655861]
[1736972772199,2.27401105,3463.7,3463.1,4.0804]
[1736972772402,2.27401105,3463.4,3462.6,3.2078]
[1736972772697,2.85133105,3463.1,3462.9,0.57734]
[1736972772897,0.57734,3463.0,3462.9,40.8]
[1736972773093,2.27401105,3463.1,3462.9,40.8]
[1736972773094,2.85134105,3463.1,3462.9,40.8]
[1736972773295,2.27401105,3463.1,3462.9,41.37734]
[1736972773501,0.5773,3463.2,3463.0,0.57733]
[1736972773700,2.32954,3463.6,3463.3,0.57727]
[1736972773893,2.32954,3463.6,3463.0,3.2078]
[1736972773894,1.7523,3463.6,3463.0,3.2078]
[1736972774097,0.57729,3463.3,3463.0,3.78512]
[1736972774404,0.57731,3463.1,3463.0,3.2078]
[1736972775103,0.57736,3462.9,3462.6,3.78518]
[1736972775303,3.29986538,3462.7,3462.6,3.2078]
[1736972775599,2.72248538,3462.7,3462.1,3.2078]
[1736972775900,0.57741,3462.5,3462.2,0.57746]
[1736972776196,0.57741,3462.6,3462.2,0.57746]
[1736972777095,2.72248538,3462.7,3462.1,3.2078]
[1736972777400,0.5774,3462.6,3462.3,0.57743]
[1736972777996,0.5774,3462.6,3462.2,1.40995]
[1736972778196,2.72248538,3462.7,3462.6,0.5774]
[1736972778501,0.5773,3463.2,3462.9,0.57733]
[1736972778701,0.5773,3463.2,3463.0,3.2078]
[1736972779001,0.5773,3463.2,3463.1,40.8]
[1736972779702,0.5773,3463.2,3462.5,3.2078]
[1736972779703,0.5774,3462.6,3462.5,3.2078]
[1736972779902,3.29988538,3462.6,3462.5,3.2078]
[1736972780300,2.72248538,3463.0,3462.5,3.2078]
[1736972780497,2.72248538,3463.0,3462.8,0.57736]
[1736972780696,3.29982538,3463.0,3462.7,0.57737]
[1736972781000,2.72248538,3463.0,3462.8,0.57736]
[1736972781298,0.57729,3463.3,3463.0,0.57731]
[1736972781493,2.72248538,3463.8,3462.9,4.65115]
[1736972781696,2.72248538,3463.8,3463.7,0.57721]
[1736972782093,0.8749,3464.1,3463.6,3.2078]
[1736972782302,0.57717,3464.0,3463.8,0.57719]
[1736972782604,0.57721,3463.7,3463.6,3.2078]
[1736972783099,4.4758,3464.0,3462.6,4.0827]
[1736972783302,0.57725,3463.5,3463.2,0.57728]
[1736972783501,2.72248538,3463.8,3463.0,3.2078]
[1736972783903,1.45205,3464.1,3463.8,0.57718]
[1736972784098,1.45205,3464.1,3463.9,0.57718]
[1736972784399,0.8749,3464.1,3463.6,0.8676]
[1736972784603,0.867,3464.2,3464.1,0.57715]
[1736972784998,3.29957538,3464.5,3464.3,0.57711]
[1736972785306,0.57719,3463.9,3463.8,3.2078]
[1736972785504,0.57721,3463.7,3463.6,0.8676]
[1736972785802,0.5772,3463.8,3463.6,1.44482]
[1736972786004,0.5772,3463.8,3463.7,40.8]
[1736972786400,0.57721,3463.7,3463.6,0.8676]
[1736972786600,2.72248538,3464.0,3463.6,0.8676]
[1736972786802,0.57719,3463.9,3463.7,0.5772]
[1736972787005,0.57719,3463.9,3463.7,0.57721]
[1736972787401,0.57719,3463.9,3463.6,41.6676]
[1736972787402,0.57721,3463.8,3463.6,41.6676]
[1736972787606,0.57721,3463.8,3463.6,42.24482]
[1736972787907,0.57721,3463.7,3463.5,0.57724]
[1736972788103,0.57725,3463.5,3463.4,3.2078]
[1736972788909,0.8499,3463.8,3463.4,3.2078]
[1736972789208,0.5772,3463.8,3463.6,0.57722]
[1736972789410,0.57718,3463.9,3463.7,0.5772]
[1736972789606,0.5772,3463.8,3463.7,0.5772]
[1736972789802,2.72248538,3463.8,3463.4,3.2078]
[1736972790011,0.57725,3463.5,3463.4,3.2078]
[1736972790311,2.72248538,3463.8,3463.0,0.8479]
[1736972790505,0.9156,3464.1,3462.9,3.78514]
[1736972790506,0.57733,3463.0,3462.9,3.2078]
[1736972790902,0.57732,3463.1,3462.9,3.78514]
[1736972791112,0.57733,3463.0,3462.9,3.2078]
[1736972791620,0.57733,3463.0,3462.8,0.57735]
[1736972791811,0.8499,3463.3,3462.4,44.0078]
[1736972792004,0.57736,3462.9,3462.4,44.0078]
[1736972792204,0.57737,3462.8,3462.4,44.0078]
[1736972792401,0.8499,3463.3,3462.4,44.0078]
[1736972792610,2.72248538,3463.0,3462.4,44.0078]
[1736972792813,0.5773,3463.2,3463.1,0.57731]
[1736972793003,0.57724,3463.6,3463.5,0.57724]
[1736972793314,0.57726,3463.5,3463.4,0.57726]
[1736972793612,3.2078,3463.7,3463.3,0.57727]
[1736972793807,0.57724,3463.6,3463.5,0.57724]
[1736972794007,3.2078,3463.7,3463.6,0.57723]
[1736972794008,3.78502,3463.7,3463.6,0.57723]
[1736972795002,0.57726,3463.4,3463.3,0.57727]
[1736972795209,0.57728,3463.3,3463.2,3.2078]
[1736972795611,2.85411167,3463.4,3463.2,3.7851]
[1736972795911,5.48464167,3463.7,3463.2,3.2078]
[1736972796111,2.27684167,3463.4,3463.3,0.57728]
[1736972796708,2.85411167,3463.4,3463.2,3.78509]
[1736972796908,0.57728,3463.3,3463.2,3.2078]
[1736972797412,0.57735,3462.9,3462.8,3.2078]
[1736972800103,0.57743,3462.4,3462.3,3.2078]
[1736972800305,3.30027365,3462.4,3462.3,3.2078]
[1736972800712,0.57751,3461.9,3461.8,44.0078]
[1736972800912,0.57751,3461.9,3460.1,1.01038691]
[1736972800913,0.57758,3461.5,3461.4,3.2078]
[1736972801120,2.72284365,3461.9,3461.4,3.2078]
[1736972801413,0.57758,3461.5,3461.4,3.2078]
[1736972802113,2.72284365,3461.9,3461.4,3.2078]
[1736972802420,2.72284365,3461.5,3460.9,4.66007]
[1736972802617,0.8345,3461.4,3460.9,4.0824]
[1736972802912,0.57765,3461.1,3460.9,4.66007]
[1736972803413,0.8345,3461.4,3460.9,4.0824]
[1736972803608,0.57766,3461.0,3460.9,4.0824]
[1736972803810,0.57766,3461.0,3460.9,3.2078]
[1736972804012,2.72284365,3461.1,3460.5,3.2078]
[1736972804218,2.72284365,3460.6,3460.0,3.2078]
[1736972804408,0.57776,3460.4,3460.2,3.2078]
[1736972804624,3.2078,3460.8,3460.2,3.2078]
[1736972804926,0.57767,3461.0,3460.7,0.5777]
[1736972805328,1.44416,3461.0,3460.3,0.9183]
[1736972805527,2.72284365,3460.7,3460.3,0.9183]
[1736972805827,0.57776,3460.4,3460.3,0.9183]
[1736972806222,0.57778,3460.3,3460.2,3.2078]
[1736972807328,2.72284365,3460.7,3460.2,3.2078]
[1736972807824,0.57778,3460.3,3460.2,3.2078]
[1736972808025,3.30062365,3460.3,3460.2,3.2078]
[1736972808332,2.72284365,3460.3,3459.8,3.2078]
[1736972808523,3.30063365,3460.3,3459.8,3.2078]
[1736972808719,2.72284365,3460.7,3459.8,3.2078]
[1736972808924,2.72284365,3460.7,3460.4,0.57775]
[1736972808925,0.57772,3460.7,3460.4,0.57775]
[1736972809134,3.78549,3460.9,3460.2,3.2078]
[1736972809324,3.2078,3460.9,3460.5,40.8]
[1736972809626,0.57773,3460.6,3460.5,40.8]
[1736972809823,0.57772,3460.7,3460.5,40.8]
[1736972810022,0.5777,3460.8,3460.5,40.8]
[1736972810224,3.2078,3460.9,3460.5,40.8]
[1736972810423,0.57773,3460.6,3460.5,40.8]
[1736972811424,2.72284365,3460.7,3460.2,3.2078]
[1736972811726,0.8756,3460.5,3459.8,3.2078]
[1736972811928,0.57774,3460.6,3460.3,0.57777]
[1736972812624,0.57774,3460.6,3459.9,40.8]
[1736972812625,2.72284365,3460.7,3459.9,40.8]
[1736972812832,0.57772,3460.7,3460.5,0.57775]
[1736972813324,3.2078,3460.9,3460.2,3.2078]
[1736972813531,0.57771,3460.7,3460.5,0.57774]
[1736972813730,3.2078,3460.9,3460.2,3.2078]
[1736972813927,0.57773,3460.6,3460.4,0.57776]
[1736972814523,3.2078,3460.9,3460.2,3.2078]
[1736972814825,0.57772,3460.7,3460.5,0.57775]
[1736972815730,3.2078,3460.9,3460.3,0.9024]
[1736972815926,3.78549,3460.9,3460.4,0.57776]
[1736972816130,0.57767,3461.0,3460.3,1.7455]
[1736972816333,0.57768,3460.9,3460.7,0.57771]
[1736972816633,3.59844365,3461.1,3460.3,0.9024]
[1736972816933,0.57774,3460.6,3460.4,0.57775]
[1736972817319,5.04259365,3461.1,3460.4,0.57775]
[1736972817521,0.57774,3460.6,3460.4,0.57775]
[1736972817721,0.57775,3460.5,3460.4,0.57775]
[1736972818022,0.57775,3460.5,3460.3,1.48017]
[1736972818334,0.57775,3460.5,3460.3,0.9024]
[1736972818544,0.57776,3460.4,3460.3,1.48018]
[1736972818827,0.57774,3460.6,3460.4,0.57775]
[1736972819229,0.57776,3460.5,3460.3,1.48017]
[1736972819433,0.57776,3460.5,3460.3,0.9024]
[1736972819627,0.57776,3460.5,3460.4,0.57776]
[1736972819823,1.44416,3461.0,3460.3,0.9024]
[1736972820029,0.57775,3460.5,3460.3,0.9024]
[1736972820239,0.57772,3460.7,3460.5,0.57773]
[1736972820534,0.57771,3460.8,3460.6,0.57772]
[1736972820728,0.57771,3460.7,3460.4,0.57776]
[1736972820929,0.5777,3460.8,3460.7,0.57771]
[1736972821138,3.59844365,3461.1,3460.5,0.57774]
[1736972821331,0.5777,3460.8,3460.6,0.57771]
[1736972821532,2.28000243,3461.0,3460.3,0.9024]
[1736972821732,0.57775,3460.6,3460.3,0.9024]
[1736972821934,0.57775,3460.6,3460.4,0.57776]
[1736972822227,2.28000243,3460.7,3460.3,0.9024]
[1736972822431,2.28000243,3461.0,3460.4,1.44441]
[1736972822739,0.57762,3461.3,3461.2,0.57762]
[1736972822937,0.57759,3461.5,3461.4,0.57759]
[1736972823132,0.57759,3461.5,3460.9,4.65198]
[1736972823133,0.57758,3461.5,3461.3,0.5776]
[1736972823338,0.5776,3461.4,3461.3,0.5776]
[1736972823635,2.72495616,3461.4,3461.0,40.8]
[1736972823937,0.57773,3460.6,3460.5,3.2078]
[1736972824138,1.44416,3461.1,3460.5,3.2078]
[1736972824139,2.72495616,3461.0,3460.5,3.2078]
[1736972824435,0.5777,3460.8,3460.7,0.5777]
[1736972824639,0.57773,3460.6,3460.5,3.2078]
[1736972825033,2.72495616,3461.0,3460.1,3.2078]
[1736972825239,3.56055616,3460.5,3460.1,3.2078]
[1736972825543,2.72495616,3460.9,3460.1,3.2078]
[1736972825734,8.21244616,3461.2,3460.2,1.4445]
[1736972825932,0.57773,3460.6,3460.5,0.57774]
[1736972826232,0.5778,3460.2,3460.1,3.2078]
[1736972826535,2.72495616,3460.8,3460.1,3.2078]
[1736972827037,0.57775,3460.5,3460.3,0.57777]
[1736972827236,2.72495616,3460.8,3460.3,0.57777]
[1736972827636,0.57778,3460.3,3460.1,3.2078]
[1736972827836,0.57778,3460.3,3460.2,0.5778]
[1736972828035,0.5778,3460.2,3460.1,3.2078]
[1736972828936,0.57779,3460.3,3460.1,3.2078]
[1736972829138,0.8982,3460.6,3460.3,0.57777]
[1736972829438,0.57775,3460.5,3460.1,3.2078]
[1736972829631,0.57776,3460.4,3460.3,0.57777]
[1736972829833,0.8982,3460.6,3460.1,3.2078]
[1736972830231,0.57776,3460.4,3460.3,0.57777]
[1736972831043,0.57776,3460.5,3460.3,0.57777]
[1736972831334,0.8982,3460.6,3460.2,0.57778]
[1736972831533,0.57777,3460.4,3460.3,0.3484899]
[1736972831734,0.57777,3460.4,3460.3,0.34849158]
[1736972831942,2.72495616,3460.8,3460.3,0.34849158]
[1736972832132,0.57773,3460.7,3460.5,0.57775]
[1736972832336,0.57773,3460.7,3460.5,0.57774]
[1736972832642,0.57773,3460.7,3460.6,0.92632539]
[1736972832846,0.57773,3460.7,3460.5,0.57774]
[1736972833037,0.57773,3460.6,3460.5,0.57774]
[1736972833237,0.57772,3460.7,3460.6,0.57773]
[1736972833437,0.57773,3460.6,3460.5,0.57774]
[1736972833635,0.57773,3460.6,3460.5,0.92626147]
[1736972834139,0.57771,3460.7,3460.5,0.92626147]
[1736972834341,0.57773,3460.6,3460.1,4.1187]
[1736972834640,0.57775,3460.5,3460.4,0.57775]
[1736972834837,1.44429,3460.7,3460.1,3.2078]
[1736972835036,0.5778,3460.2,3460.1,3.2078]
[1736972835344,2.72495616,3460.4,3459.3,3.2078]
[1736972835345,3.2078,3460.3,3459.3,3.2078]
[1736972835537,0.57789,3459.7,3459.4,1.40903]
[1736972835841,0.57789,3459.7,3459.5,0.34865961]
[1736972836030,2.72495616,3460.0,3459.6,0.34865961]
[1736972836234,2.72495616,3460.0,3459.7,0.34866395]
[1736972836436,1.7545,3460.3,3459.8,3.55633369]
[1736972836631,0.57782,3460.1,3459.9,0.34852354]
[1736972836834,0.57782,3460.1,3459.9,0.57784]
[1736972837441,1.7545,3460.3,3459.8,3.78565]
[1736972837638,1.7545,3460.3,3459.9,0.34856358]
[1736972837844,1.7545,3460.3,3459.8,3.78565]
[1736972838046,0.57782,3460.1,3459.9,0.92640634]
[1736972838245,2.72495616,3460.8,3460.0,0.34854946]
[1736972838445,1.7598,3461.1,3460.6,0.57772]
[1736972838750,0.57769,3460.9,3460.6,0.57772]
[1736972839146,0.8736,3461.1,3460.4,0.8294]
[1736972839449,2.72495616,3461.2,3460.9,3.2078]
[1736972839640,2.72495616,3461.2,3460.5,3.2078]
[1736972839837,0.57768,3460.9,3460.7,0.5777]
[1736972840045,0.57767,3461.0,3460.8,41.37769]
[1736972840444,0.57767,3461.0,3460.8,0.57769]
[1736972840640,2.72495616,3461.2,3460.5,3.2078]
[1736972840841,2.72495616,3461.0,3460.5,3.2078]
[1736972841037,0.57771,3460.8,3460.6,0.34811687]
[1736972841241,0.57771,3460.8,3460.7,0.34810145]
[1736972841549,0.57773,3460.6,3460.5,3.2078]
[1736972841747,0.57773,3460.6,3460.5,3.55592948]
[1736972842246,0.57773,3460.6,3460.5,3.55591768]
[1736972843447,2.85822248,3460.6,3460.5,3.55591768]
[1736972844541,2.85822248,3460.6,3460.5,3.2078]
[1736972844740,0.57773,3460.6,3460.5,3.78555]
[1736972845048,0.57773,3460.7,3460.5,4.13350261]
[1736972845350,2.28049248,3460.9,3460.5,4.13350261]
[1736972845351,0.5777,3460.8,3460.6,0.57772]
[1736972845645,2.28049248,3460.9,3460.7,0.57771]
[1736972845947,0.5777,3460.8,3460.7,0.57771]
[1736972846249,2.28049248,3460.9,3460.7,0.57771]
[1736972846443,2.28049248,3460.9,3460.5,3.2078]
[1736972846444,3.2078,3461.0,3460.5,3.2078]
[1736972846639,3.15409248,3461.3,3461.1,0.57764]
[1736972846843,0.57763,3461.2,3461.1,0.57764]
[1736972847042,3.73171248,3461.3,3461.1,0.57764]
[1736972847648,2.85811248,3461.3,3461.1,0.57764]
[1736972847950,3.2078,3462.9,3461.2,2.71850047]
[1736972848248,3.2078,3462.9,3462.2,0.57746]
[1736972848249,2.28049248,3462.7,3462.2,0.57746]
[1736972848451,0.57735,3462.9,3462.2,1.81447973]
[1736972848652,2.28049248,3463.0,3462.2,1.81447973]
[1736972848841,0.8217,3463.2,3462.2,6.23701973]
[1736972849041,12.52963807,3463.5,3463.1,3.2078]
[1736972849249,2.85779248,3463.2,3463.1,3.2078]
[1736972849451,2.28049248,3463.2,3462.6,3.2078]
[1736972849652,0.57729,3463.3,3463.0,0.57732]
[1736972849952,0.57729,3463.3,3463.0,3.78512]
[1736972850252,0.57731,3463.1,3463.0,3.2078]
[1736972850947,0.57736,3462.8,3462.7,40.8]
[1736972851458,0.57736,3462.8,3462.5,3.7852]
[1736972851749,0.57736,3462.9,3462.6,0.57739]
[1736972851955,0.57738,3462.8,3462.5,3.7852]
[1736972852153,0.5774,3462.6,3462.5,3.2078]
[1736972852846,4.0857,3462.7,3461.7,3.2078]
[1736972853047,2.72281054,3462.4,3461.7,3.2078]
[1736972853246,0.57741,3462.5,3462.0,0.57748]
[1736972853448,0.57741,3462.5,3461.9,0.57751]
[1736972853649,0.57748,3462.1,3461.9,0.57751]
[1736972853845,2.72281054,3462.6,3461.7,3.2078]
[1736972854051,0.57753,3461.8,3461.7,3.2078]
[1736972854956,2.72281054,3461.8,3461.2,3.2078]
[1736972855155,1.44375,3462.0,3461.6,3.2078]
[1736972855156,0.8779,3462.0,3461.6,3.2078]
[1736972855550,0.57753,3461.9,3461.7,0.57755]
[1736972855750,0.57751,3461.9,3461.7,0.57755]
[1736972855947,1.4554,3462.0,3461.6,3.2078]
[1736972856147,0.8779,3462.0,3461.6,3.2078]
[1736972856350,0.8779,3462.0,3461.7,0.57755]
[1736972856546,0.57753,3461.9,3461.6,3.78535]
[1736972856747,0.57751,3461.9,3461.6,3.78535]
[1736972857257,0.57755,3461.7,3461.6,3.2078]
[1736972859558,1.44362,3462.3,3461.7,0.57755]
[1736972859559,0.57746,3462.3,3461.7,0.57755]
[1736972859753,0.57746,3462.3,3462.0,3.2078]
[1736972859954,0.8744,3462.4,3462.3,0.57745]
[1736972860253,0.57738,3462.7,3462.0,3.2078]
[1736972860558,1.47506,3462.9,3462.6,3.78519]
[1736972860865,0.57734,3463.0,3462.7,0.57737]
[1736972861051,0.8744,3463.1,3462.6,3.2078]
[1736972861253,0.57736,3462.9,3462.6,3.78519]
[1736972861448,0.8744,3463.1,3462.6,3.2078]
[1736972861653,1.45171,3463.1,3462.9,0.57733]
[1736972861848,2.72281054,3463.7,3463.0,3.2078]
[1736972862059,0.57724,3463.6,3463.3,0.57727]
[1736972862359,3.58381054,3463.7,3463.2,0.57729]
[1736972862555,0.57727,3463.4,3463.2,0.57729]
[1736972862860,3.58381054,3463.7,3463.0,3.2078]
[1736972863159,0.57727,3463.4,3463.1,0.57732]
[1736972863359,3.58381054,3463.7,3463.0,3.2078]
[1736972863559,0.861,3463.7,3463.4,3.2078]
[1736972863863,0.57725,3463.5,3463.4,3.2078]
[1736972874257,0.861,3463.7,3462.5,3.2078]
[1736972874258,3.2078,3463.6,3462.5,3.2078]
[1736972874455,0.5773,3463.2,3463.1,3.2078]
[1736972875463,0.57738,3462.7,3462.6,3.2078]
[1736972875859,3.2078,3463.4,3462.1,3.2078]
[1736972875860,2.72281054,3462.9,3462.1,3.2078]
[1736972876061,1.7176,3463.0,3462.1,3.2078]
[1736972876062,2.72281054,3462.4,3462.1,3.2078]
[1736972876371,2.72281054,3462.8,3462.1,3.2078]
[1736972876659,0.8311,3463.0,3462.6,0.5774]
[1736972876865,0.57735,3462.9,3462.7,0.57737]
[1736972877564,0.8311,3463.0,3462.5,3.2078]
[1736972877763,0.8311,3463.0,3462.8,0.57736]
[1736972877764,1.40844,3463.0,3462.8,0.57736]
[1736972877965,0.8311,3463.0,3462.5,44.0078]
[1736972878154,2.72281054,3462.8,3462.5,3.2078]
[1736972878359,0.5774,3462.6,3462.5,3.2078]
[1736972880174,0.57746,3462.2,3462.1,3.2078]
[1736972881263,2.72281054,3462.3,3461.7,0.8865]
[1736972881466,0.57756,3461.6,3461.5,3.2078]
[1736972881663,3.30037054,3461.6,3461.5,3.2078]
[1736972882260,0.57759,3461.5,3461.3,0.5776]
[1736972882462,3.30037054,3461.6,3461.4,0.57759]
[1736972882658,3.2078,3461.7,3461.1,1.46415]
[1736972882659,2.72281054,3461.2,3461.1,1.46415]
[1736972883065,2.72281054,3461.2,3461.1,0.8865]
[1736972883272,2.72281054,3461.2,3460.9,3.2078]
[1736972884061,0.57766,3461.0,3460.9,3.2078]
[1736972884560,0.57771,3460.7,3460.6,0.8661]
[1736972884868,0.57779,3460.3,3460.1,0.5778]
[1736972885069,2.72281054,3460.6,3459.9,4.9531]
[1736972885365,2.72281054,3460.6,3460.5,0.57775]
[1736972885668,2.72281054,3461.0,3460.5,0.57775]
[1736972885961,3.2078,3461.3,3461.2,0.57763]
[1736972886366,3.2078,3461.3,3460.7,1.6748]
[1736972886662,3.2078,3461.3,3461.2,0.57763]
[1736972886859,2.72281054,3461.5,3461.4,0.5776]
[1736972887259,2.72281054,3461.5,3460.9,3.2078]
[1736972887457,3.2078,3461.7,3460.9,44.0078]
[1736972887669,3.2078,3461.7,3461.6,0.57756]
[1736972889569,3.2078,3461.7,3461.6,41.37756]
[1736972889962,3.2078,3461.7,3461.6,0.57756]
[1736972890158,3.2078,3461.7,3461.0,2.74417]
[1736972890366,3.2078,3461.7,3461.6,0.57756]
[1736972891365,3.2078,3462.2,3462.1,0.57748]
[1736972891571,3.2078,3462.6,3461.6,1.44388]
[1736972891770,5.93061054,3462.6,3461.7,0.8216]
[1736972892167,5.93061054,3462.6,3461.9,1.44379]
[1736972892361,0.57743,3462.5,3462.4,0.57742]
[1736972893268,7.37412054,3462.6,3461.7,0.8216]
[1736972893470,2.72281054,3462.2,3461.7,0.8216]
[1736972893674,2.72281054,3462.2,3462.1,0.57748]
[1736972893874,0.8359,3462.5,3461.7,0.8216]
[1736972894075,1.41332,3462.5,3462.4,0.57743]
[1736972894272,0.57744,3462.4,3462.3,0.57744]
[1736972894672,0.8359,3462.5,3462.1,0.57747]
[1736972894973,0.57753,3461.9,3461.8,0.57753]
[1736972895676,0.57753,3461.9,3461.7,0.8216]
[1736972895677,5.93061054,3462.2,3461.7,0.8216]
[1736972895868,0.57752,3461.9,3461.8,0.57752]
[1736972896069,5.93061054,3462.2,3461.8,0.57752]
[1736972896479,0.57752,3461.9,3461.8,0.57752]
[1736972896680,0.57751,3462.0,3461.9,0.57751]
[1736972896878,0.57749,3462.1,3462.0,0.57749]
[1736972897070,5.93061054,3462.2,3461.7,0.8216]
[1736972897574,5.93061054,3462.2,3462.1,0.57748]
[1736972897774,3.2078,3462.2,3462.1,0.57748]
[1736972897975,2.72281054,3462.6,3461.8,3.2078]
[1736972898175,5.93061054,3463.0,3462.9,0.57735]
[1736972898479,0.5773,3463.3,3463.2,0.5773]
[1736972898678,6.80681054,3463.4,3463.1,0.57731]
[1736972898883,0.57732,3463.1,3462.7,0.57738]
[1736972899177,6.80681054,3463.4,3462.7,41.6457]
[1736972899383,0.57728,3463.3,3463.1,0.5773]
[1736972899684,0.5773,3463.2,3463.0,0.57732]
[1736972900074,6.80681054,3463.4,3462.7,41.6457]
[1736972900375,0.57733,3463.0,3462.8,0.57737]
[1736972900573,0.57733,3463.0,3462.7,41.6457]
[1736972900574,3.2078,3463.0,3462.7,41.6457]
[1736972900969,3.2078,3463.0,3462.9,0.57735]
[1736972900970,3.78514,3463.0,3462.9,0.57735]
[1736972901177,3.2078,3463.0,3462.9,0.57735]
[1736972901875,3.78513,3463.0,3462.9,0.57735]
[1736972902080,3.78513,3463.0,3462.8,0.57736]
[1736972902081,0.57737,3462.9,3462.8,0.57736]
[1736972902277,0.57743,3462.5,3462.4,0.57742]
[1736972902479,5.93061054,3463.0,3462.1,3.2078]
[1736972902979,0.57743,3462.5,3462.4,0.57743]
[1736972903877,2.72281054,3462.5,3462.0,0.8278]
[1736972904182,2.72281054,3462.5,3461.7,3.2078]
[1736972904380,2.72281054,3462.5,3461.8,0.839]
[1736972904581,0.57747,3462.2,3462.1,0.57747]
[1736972905178,2.72281054,3462.5,3461.8,0.839]
[1736972905385,0.57752,3461.9,3461.8,1.41653]
[1736972905582,0.57752,3461.9,3461.6,0.8981]
[1736972905583,0.57756,3461.7,3461.6,0.57756]
[1736972905792,3.61651054,3462.1,3461.3,3.2078]
[1736972905994,0.8301,3462.0,3461.9,0.57752]
[1736972906397,3.2078,3462.2,3461.4,1.44401]
[1736972906586,0.57752,3461.9,3461.8,0.57752]
[1736972906896,0.57748,3462.1,3462.0,0.5775]
[1736972907397,3.2078,3462.2,3461.4,1.44401]
[1736972907695,3.2078,3462.2,3462.1,0.57748]